bitfinex-derivatives/quotes_SOLF0:USTF0_20250719
["timestamp","ask_amount","ask_price","bid_price","bid_amount"]
[1752949109012,3.14764729,176.95,176.93,5.6487]
[1752949109216,3.14764729,176.95,176.94,3.32]
[1752949109617,3.14764729,176.95,176.94,8.9686]
[1752949110215,3.14764729,176.95,176.94,3.32]
[1752949112921,3.11,176.94,176.9,3.32]
[1752949113127,5.51641042,176.94,176.9,3.32]
[1752949113424,3.11,176.92,176.91,5.6496]
[1752949113814,3.11,176.92,176.9,5.6499]
[1752949114022,3.11,176.92,176.91,3.32]
[1752949114622,3.11,176.92,176.91,8.9697]
[1752949114925,3.11,176.92,176.91,3.32]
[1752949115123,3.11,176.92,176.76,2.40641042]
[1752949115124,3.11,176.92,176.88,5.6506]
[1752949115320,3.11,176.92,176.86,3.32]
[1752949116018,3.14939622,176.91,176.89,3.32]
[1752949117225,3.14939622,176.91,176.89,5.6503]
[1752949117226,3.11,176.9,176.89,5.6503]
[1752949117527,3.11,176.88,176.81,2.40641042]
[1752949117726,3.11,176.87,176.86,5.6513]
[1752949118128,5.6498,176.91,176.87,5.6509]
[1752949118326,0.04051525,176.88,176.87,8.9709]
[1752949119028,3.15051525,176.88,176.87,8.9709]
[1752949119418,0.04051525,176.88,176.87,8.9709]
[1752949124428,130.28539417,176.96,176.92,5.6494]
[1752949124733,3.11,176.94,176.93,8.9691]
[1752949125937,127.87898375,176.96,176.93,8.9691]
[1752949126133,3.11,176.95,176.94,3.32]
[1752949126733,3.11,176.95,176.94,8.9688]
[1752949128237,3.11,176.95,176.93,3.32]
[1752949128440,3.11,176.95,176.88,2.40641042]
[1752949128631,3.11,176.95,176.92,3.32]
[1752949128826,3.11,176.92,176.85,5.72641042]
[1752949129033,3.11,176.92,176.86,3.32]
[1752949129236,3.11,176.92,176.89,5.6501]
[1752949129638,3.11,176.92,176.9,3.32]
[1752949130437,3.11,176.92,176.9,8.97]
[1752949130638,3.11,176.92,176.9,3.32]
[1752949130938,3.14,176.91,176.86,3.19]
[1752949131435,3.14,176.91,176.88,5.6507]
[1752949131633,3.14,176.91,176.89,3.19]
[1752949134437,3.14,176.9,176.88,8.87628749]
[1752949136241,3.14,176.9,176.88,0.03558749]
[1752949136433,2.40641042,176.9,176.88,0.03558749]
[1752949136639,3.14,176.89,176.88,0.03558749]
[1752949140038,8.7907,176.89,176.84,5.6519]
[1752949140238,3.14,176.86,176.78,3.19]
[1752949140641,3.14,176.86,176.84,5.6517]
[1752949140837,3.14,176.86,176.85,3.19]
[1752949142343,0.03738335,176.87,176.85,3.19]
[1752949142842,3.17738335,176.87,176.84,3.19]
[1752949143433,5.58379377,176.87,176.84,3.19]
[1752949143643,3.14,176.86,176.84,3.19]
[1752949144046,8.7914,176.86,176.78,2.40641042]
[1752949144342,3.14,176.85,176.79,3.19]
[1752949144742,3.14,176.85,176.83,5.6522]
[1752949144939,5.54641042,176.85,176.82,3.19]
[1752949145140,8.792,176.84,176.78,3.19]
[1752949145339,5.54641042,176.83,176.78,3.19]
[1752949145838,3.14,176.82,176.8,3.19]
[1752949146043,2.40641042,176.81,176.78,3.19]
[1752949146240,3.14,176.8,176.74,93.90411939]
[1752949146438,3.14,176.8,176.77,3.19]
[1752949146840,0.03814463,176.79,176.78,3.19]
[1752949147345,3.14,176.83,176.78,3.19]
[1752949147644,3.14,176.82,176.78,3.19]
[1752949147842,3.14,176.82,176.81,3.19]
[1752949148945,3.14,176.82,176.81,8.8429]
[1752949149440,2.40641042,176.84,176.81,3.19]
[1752949149750,3.14,176.83,176.77,3.19]
[1752949150248,5.6523,176.83,176.79,5.6534]
[1752949150446,3.14,176.82,176.79,3.19]
[1752949151138,5.54641042,176.82,176.79,8.8435]
[1752949151647,3.14,176.81,176.79,8.8435]
[1752949153341,3.14,176.81,176.79,5.6535]
[1752949153742,6.28600945,176.89,176.8,3.19]
[1752949153942,2.40641042,176.83,176.75,2.40641042]
[1752949154139,2.40641042,176.83,176.76,3.19]
[1752949154140,3.14,176.82,176.76,3.19]
[1752949154346,3.14,176.82,176.8,3.19]
[1752949154845,3.14,176.82,176.8,5.6532]
[1752949155045,3.14,176.82,176.8,8.8432]
[1752949155645,2.40641042,176.83,176.8,5.6532]
[1752949155848,3.14,176.81,176.8,5.6532]
[1752949156243,2.40641042,176.83,176.81,5.6528]
[1752949156547,3.14,176.83,176.82,3.19]
[1752949157345,3.14,176.83,176.81,5.6528]
[1752949157646,3.14,176.83,176.81,8.8428]
[1752949158749,3.14,176.83,176.81,3.19]
[1752949159143,5.54641042,176.83,176.76,2.40641042]
[1752949159349,3.14,176.82,176.8,3.19]
[1752949160650,3.29,176.81,176.8,3.19]
[1752949161446,3.29,176.81,176.8,8.8433]
[1752949161951,3.29,176.81,176.8,5.6533]
[1752949162254,5.6522,176.84,176.81,3.17]
[1752949162255,3.29,176.82,176.81,3.17]
[1752949162549,3.29,176.83,176.77,3.17]
[1752949162751,3.29,176.85,176.82,3.17]
[1752949162951,2.40641042,176.88,176.82,3.17]
[1752949163347,3.29,176.86,176.85,3.17]
[1752949163548,3.29,176.93,176.85,3.17]
[1752949163747,3.29,176.93,176.77,114.9685]
[1752949163748,3.29,176.93,176.87,3.17]
[1752949164456,2.40641042,176.92,176.87,3.17]
[1752949164656,3.29,176.91,176.88,0.04268655]
[1752949164849,5.6503,176.9,176.88,3.21268655]
[1752949165053,3.29,176.89,176.88,3.21268655]
[1752949165254,3.29,176.89,176.88,0.04268655]
[1752949165957,8.9404,176.89,176.88,0.04268655]
[1752949170357,3.29,176.89,176.88,3.21268655]
[1752949170550,3.29,176.89,176.88,0.04268655]
[1752949170754,3.29,176.89,176.83,5.6521]
[1752949171053,3.29,176.85,176.84,3.17]
[1752949171258,3.29,176.88,176.84,3.17]
[1752949171455,3.29,176.88,176.85,5.6516]
[1752949171651,3.29,176.88,176.86,3.17]
[1752949172059,3.33031603,176.88,176.86,3.17]
[1752949172861,3.29,176.87,176.86,3.17]
[1752949176264,3.29,176.87,176.84,5.6518]
[1752949176566,3.29,176.87,176.85,3.17]
[1752949177153,8.941,176.87,176.85,3.17]
[1752949177354,3.29,176.86,176.85,3.17]
[1752949178365,3.29,176.86,176.84,3.17]
[1752949178561,8.9414,176.86,176.82,3.17]
[1752949178761,3.29,176.85,176.83,3.17]
[1752949179568,8.9417,176.85,176.82,5.6525]
[1752949179769,3.29,176.84,176.77,2.40641042]
[1752949179971,3.29,176.82,176.79,3.17]
[1752949180171,3.29,176.82,176.79,8.8234]
[1752949180467,3.3280626,176.82,176.8,3.17]
[1752949183269,3.3280626,176.82,176.79,8.8234]
[1752949183473,5.6907626,176.82,176.79,8.8234]
[1752949183768,3.29,176.81,176.79,3.17]
[1752949183964,3.29,176.81,176.76,106.81]
[1752949184163,3.29,176.81,176.79,3.17]
[1752949185468,5.6533,176.8,176.78,3.17]
[1752949185671,3.29,176.79,176.75,3.17]
[1752949185965,8.9438,176.79,176.75,8.8246]
[1752949186168,5.69641042,176.79,176.76,3.17]
[1752949186367,3.29,176.78,176.76,3.17]
[1752949186671,3.29,176.78,176.74,3.17]
[1752949186866,3.29,176.76,176.74,3.17]
[1752949187170,3.29,176.75,176.73,3.17]
[1752949187767,3.29,176.74,176.73,3.17]
[1752949188771,3.29,176.74,176.71,8.8261]
[1752949189170,3.29,176.74,176.66,2.40641042]
[1752949189372,3.29,176.74,176.67,3.17]
[1752949190062,0.03794819,176.72,176.67,3.17]
[1752949190468,3.15794819,176.72,176.71,8.9958]
[1752949191177,0.03794819,176.72,176.71,8.9958]
[1752949191366,3.15794819,176.72,176.71,8.9958]
[1752949193175,0.03794819,176.72,176.71,8.9958]
[1752949195379,3.15794819,176.72,176.71,8.9958]
[1752949199071,3.12,176.76,176.75,5.6549]
[1752949199274,3.12,176.76,176.75,8.9949]
[1752949200879,3.12,176.79,176.75,3.34]
[1752949201069,3.12,176.77,176.75,3.34]
[1752949201976,3.12,176.77,176.76,8.9943]
[1752949203079,3.12,176.77,176.75,5.6547]
[1752949203281,3.12,176.77,176.75,8.9947]
[1752949203482,3.12,176.76,176.74,0.04261332]
[1752949203779,3.12,176.76,176.75,5.6549]
[1752949204081,0.04283698,176.78,176.75,3.34]
[1752949204082,3.16283698,176.78,176.75,3.34]
[1752949204381,3.16283698,176.78,176.77,8.9942]
[1752949205082,0.04283698,176.78,176.77,8.9942]
[1752949208681,3.12,176.81,176.8,5.6533]
[1752949208875,3.12,176.81,176.8,8.9933]
[1752949210688,3.12,176.83,176.82,3.34]
[1752949210889,3.12,176.85,176.82,3.34]
[1752949211586,3.12,176.85,176.84,3.34]
[1752949212189,3.12,176.85,176.84,8.992]
[1752949212392,3.12,176.88,176.83,3.34]
[1752949212791,3.12,176.87,176.85,3.34]
[1752949215694,3.12,176.87,176.85,8.9916]
[1752949215890,3.12,176.88,176.87,3.34]
[1752949216089,3.12,176.9,176.87,3.34]
[1752949216292,3.12,176.89,176.87,3.34]
[1752949216496,3.12,176.88,176.82,2.40641042]
[1752949216689,3.12,176.88,176.87,0.03602516]
[1752949216992,3.12,176.88,176.82,2.40641042]
[1752949217193,3.12,176.88,176.85,3.34]
[1752949217395,3.12,176.88,176.86,0.03657435]
[1752949217591,3.12,176.88,176.87,5.651]
[1752949217797,3.12,176.88,176.87,8.991]
[1752949217986,8.05621042,176.91,176.87,3.34]
[1752949218190,3.12,176.89,176.87,3.34]
[1752949219091,3.12,176.91,176.87,3.34]
[1752949219491,3.12,176.91,176.9,8.9901]
[1752949222090,3.17,176.92,176.91,5.6496]
[1752949222596,3.17,176.92,176.91,8.9496]
[1752949222998,5.57641042,176.95,176.92,5.6494]
[1752949223197,3.17,176.95,176.93,3.3]
[1752949224692,3.17,176.95,176.89,0.03643947]
[1752949224890,3.17,176.95,176.92,3.3]
[1752949226197,3.17,176.95,176.93,3.3]
[1752949226899,3.17,176.95,176.93,8.9491]
[1752949227601,3.17,176.95,176.94,3.3]
[1752949228701,3.17,176.95,176.94,8.9488]
[1752949230599,127.87898375,176.96,176.95,5.6485]
[1752949230798,106.04641042,177.01,176.95,3.3]
[1752949231005,3.17,176.99,176.95,3.3]
[1752949231305,3.17,176.99,176.97,3.3]
[1752949232107,3.17,176.98,176.93,0.04119753]
[1752949232407,3.17,176.98,176.94,2.40641042]
[1752949232607,3.17,176.98,176.95,3.3]
[1752949232805,3.17,177.0,176.95,3.3]
[1752949233505,3.17,176.99,176.95,3.3]
[1752949233908,3.17,176.99,176.97,5.6475]
[1752949234107,3.17,176.99,176.98,3.3]
[1752949235402,3.17,176.99,176.98,8.9475]
[1752949235608,3.17,177.01,176.98,3.3]
[1752949235807,3.17,177.02,176.97,0.04270872]
[1752949236007,3.17,177.02,176.98,3.3]
[1752949236306,8.8165,177.02,176.98,8.9473]
[1752949236605,3.17,177.01,176.98,8.9473]
[1752949237107,3.17,177.01,176.99,8.9472]
[1752949237708,3.17,177.02,176.98,3.3]
[1752949237909,3.17,177.01,176.98,3.3]
[1752949238404,3.17,177.01,177.0,8.9467]
[1752949240211,5.57641042,177.01,176.97,0.04270872]
[1752949240509,3.17,176.98,176.97,0.04270872]
[1752949242008,3.17,176.98,176.97,5.69050872]
[1752949242205,3.17,176.98,176.97,0.04270872]
[1752949245207,3.17,176.98,176.97,5.69050872]
[1752949245509,3.17,176.98,176.97,8.99050872]
[1752949250410,3.12,177.0,176.98,8.8474]
[1752949252314,3.12,177.0,176.98,5.6474]
[1752949253714,3.12,177.0,176.98,8.8474]
[1752949254614,3.12,176.99,176.98,5.6474]
[1752949255114,3.12,176.99,176.98,8.8474]
[1752949257309,3.12,177.01,176.98,3.2]
[1752949257511,3.12,177.02,176.98,3.2]
[1752949258817,3.12,177.02,177.01,5.6463]
[1752949259124,3.12,177.02,177.01,8.8463]
[1752949259714,3.12,177.04,177.03,8.8459]
[1752949260817,169.72588665,177.06,177.02,0.03833057]
[1752949260818,169.72588665,177.06,177.04,3.2]
[1752949261117,172.84588665,177.06,177.04,3.2]
[1752949261507,2.40641042,177.1,177.04,3.2]
[1752949261710,3.12,177.09,177.04,3.2]
[1752949262617,3.12,177.09,177.07,8.8445]
[1752949263122,3.12,177.08,177.07,5.6445]
[1752949263418,3.12,177.09,177.08,5.6443]
[1752949263618,3.12,177.09,177.08,8.8443]
[1752949263817,3.12,177.1,177.09,3.2]
[1752949264014,3.12,177.09,177.08,3.2]
[1752949264923,3.12,177.09,177.08,8.8443]
[1752949266415,3.12,177.11,177.1,8.8437]
[1752949266622,3.12,177.15,177.1,3.2]
[1752949266822,3.12,177.15,177.14,5.6424]
[1752949267014,3.12,177.15,177.14,8.8424]
[1752949267217,3.12,177.16,177.15,5.6421]
[1752949267423,3.12,177.16,177.15,8.8421]
[1752949267921,3.12,177.16,177.14,5.67805683]
[1752949268123,3.12,177.16,177.14,0.03575683]
[1752949268423,8.7618,177.16,177.14,0.03575683]
[1752949268723,3.12,177.15,177.14,0.03575683]
[1752949270619,2.40641042,177.15,177.1,3.2]
[1752949270822,3.12,177.12,177.08,5.6441]
[1752949271126,3.12,177.12,177.06,3.2]
[1752949271928,3.12,177.12,177.07,0.04335427]
[1752949272126,3.12,177.11,177.08,3.2]
[1752949272625,3.12,177.11,177.1,3.2]
[1752949274626,3.12,177.11,177.1,8.8437]
[1752949274932,3.12,177.13,177.1,3.2]
[1752949275522,3.12,177.16,177.1,3.2]
[1752949276131,3.12,177.16,177.13,5.6424]
[1752949276330,3.12,177.15,177.14,3.2]
[1752949277532,3.12,177.14,177.11,0.04279556]
[1752949277732,2.40641042,177.13,177.11,0.04279556]
[1752949278031,3.12,177.12,177.11,0.04279556]
[1752949290045,3.12,177.12,177.11,3.13279556]
[1752949290848,3.19,177.13,177.11,3.13279556]
[1752949291047,0.03888844,177.16,177.11,3.13279556]
[1752949291442,3.19,177.15,177.11,3.13279556]
[1752949291949,0.03888844,177.16,177.15,3.09]
[1752949291950,3.22888844,177.16,177.15,3.09]
[1752949293344,3.22888844,177.16,177.12,3.09]
[1752949294246,3.22888844,177.16,177.11,0.04279556]
[1752949294451,3.22888844,177.16,177.13,3.09]
[1752949294743,3.22888844,177.16,177.13,5.6424]
[1752949294944,3.19,177.15,177.14,3.09]
[1752949295852,3.19,177.15,177.12,3.09]
[1752949296047,3.19,177.15,177.11,0.04279556]
[1752949296251,3.19,177.15,177.13,3.09]
[1752949297743,3.19,177.14,177.12,3.09]
[1752949299247,3.19,177.12,177.08,3.09]
[1752949299442,3.19,177.1,177.08,3.09]
[1752949299641,3.19,177.09,177.06,3.09]
[1752949300251,2.40641042,177.09,177.06,3.09]
[1752949300551,3.19,177.07,177.06,8.735]
[1752949300954,0.03869431,177.09,177.06,5.49641042]
[1752949301253,0.03869431,177.09,177.08,8.7343]
[1752949301753,3.22869431,177.09,177.08,8.7343]
[1752949302550,3.22869431,177.09,177.06,3.09]
[1752949302754,5.63510473,177.09,177.06,3.09]
[1752949303052,3.19,177.07,177.06,3.09]
[1752949306752,3.19,177.07,177.06,8.735]
[1752949309863,3.19,177.08,177.07,8.7344]
[1752949310064,3.22869431,177.09,177.08,3.09]
[1752949310361,3.19,177.09,177.08,3.09]
[1752949310960,0.04339909,177.1,177.02,2.40641042]
[1752949311166,0.04339909,177.1,177.07,3.03]
[1752949312865,0.04339909,177.1,177.09,5.644]
[1752949313063,0.04339909,177.1,177.09,8.674]
[1752949319570,3.04,177.15,177.14,3.03]
[1752949320765,3.04,177.15,177.13,0.03736442]
[1752949322765,3.04,177.15,177.13,3.06736442]
[1752949322971,2.40641042,177.17,177.15,3.03]
[1752949323470,3.04,177.18,177.16,3.03]
[1752949324370,3.04,177.19,177.17,3.03]
[1752949324570,3.04,177.2,177.17,3.03]
[1752949324970,3.04,177.19,177.16,5.6415]
[1752949325170,3.04,177.19,177.18,3.03]
[1752949328170,3.04,177.2,177.18,3.03]
[1752949328371,3.04,177.2,177.18,8.671]
[1752949328674,3.04,177.2,177.19,3.03]
[1752949329672,3.04,177.2,177.19,8.6708]
[1752949331078,193.6114534,177.24,177.2,5.6403]
[1752949331377,3.04,177.22,177.2,5.6403]
[1752949331579,3.04,177.22,177.18,2.40641042]
[1752949331878,3.04,177.22,177.19,3.03]
[1752949332071,187.9721534,177.24,177.18,2.40641042]
[1752949332278,3.04,177.23,177.22,3.03]
[1752949332576,3.04,177.25,177.22,3.03]
[1752949332878,3.04,177.24,177.23,3.03]
[1752949333174,3.04,177.26,177.23,3.03]
[1752949333379,6.28600945,177.3,177.23,3.03]
[1752949333380,3.04,177.25,177.23,3.03]
[1752949333778,3.04,177.25,177.23,8.6694]
[1752949334077,3.04,177.25,177.24,3.03]
[1752949339182,3.04,177.25,177.24,8.6692]
[1752949340778,3.04,177.25,177.22,0.036636]
[1752949341083,3.28,177.23,177.22,0.036636]
[1752949341888,8.9195,177.23,177.22,0.036636]
[1752949342078,3.28,177.23,177.22,0.036636]
[1752949342783,3.28,177.23,177.22,3.196636]
[1752949343681,3.28,177.23,177.22,8.836536]
[1752949347990,3.28,177.25,177.22,3.196636]
[1752949348591,3.28,177.25,177.24,5.6392]
[1752949348889,3.28,177.26,177.24,3.16]
[1752949349090,3.28,177.29,177.24,3.16]
[1752949349291,3.28,177.28,177.24,3.16]
[1752949349484,3.28,177.27,177.24,3.16]
[1752949349690,3.28,177.27,177.26,5.6384]
[1752949349895,3.28,177.27,177.26,8.7984]
[1752949350091,3.28,177.29,177.27,3.16]
[1752949350399,3.28,177.32,177.28,3.16]
[1752949350598,2.40641042,177.31,177.26,3.16]
[1752949350898,3.28,177.29,177.27,3.16]
[1752949351992,3.28,177.29,177.24,5.6391]
[1752949352201,3.28,177.28,177.24,3.16]
[1752949352593,3.28,177.28,177.26,3.16]
[1752949352799,3.28,177.27,177.26,3.16]
[1752949353000,5.68641042,177.29,177.26,3.16]
[1752949353294,3.28,177.28,177.26,3.16]
[1752949353598,3.28,177.29,177.26,3.16]
[1752949354003,3.28,177.28,177.26,3.16]
[1752949354196,3.28,177.28,177.27,5.6383]
[1752949354499,3.28,177.28,177.27,3.16]
[1752949355594,3.28,177.28,177.23,3.16]
[1752949355800,3.28,177.28,177.24,3.16]
[1752949356202,3.28,177.28,177.25,3.16]
[1752949356800,3.28,177.27,177.25,3.16]
[1752949357196,5.6378,177.29,177.26,5.6386]
[1752949357397,3.28,177.29,177.27,3.16]
[1752949357794,3.28,177.29,177.27,8.798]
[1752949357999,3.28,177.29,177.28,3.16]
[1752949358600,5.637,177.31,177.28,8.7979]
[1752949358800,3.28,177.3,177.29,3.16]
[1752949359902,3.28,177.33,177.27,3.16]
[1752949360104,8.9166,177.33,177.27,3.16]
[1752949360301,3.28,177.31,177.3,3.16]
[1752949361199,3.28,177.31,177.26,2.40641042]
[1752949361200,3.28,177.33,177.27,3.16]
[1752949362010,3.28,177.32,177.27,3.16]
[1752949362204,3.28,177.31,177.29,5.6375]
[1752949362408,3.28,177.31,177.3,3.16]
[1752949362707,3.28,177.34,177.31,5.6367]
[1752949362904,3.28,177.34,177.32,3.16]
[1752949363109,3.28,177.36,177.32,3.16]
[1752949363305,3.28,177.35,177.34,5.636]
[1752949363498,3.28,177.35,177.34,8.796]
[1752949363904,3.28,177.35,177.34,3.16]
[1752949364104,3.28,177.36,177.34,3.16]
[1752949364513,3.28,177.36,177.34,8.7959]
[1752949364711,3.28,177.36,177.35,3.16]
[1752949365116,3.28,177.36,177.35,8.7957]
[1752949365310,3.28,177.38,177.35,8.7957]
[1752949365507,3.28,177.38,177.35,5.6357]
[1752949365707,3.28,177.38,177.37,3.16]
[1752949366103,8.9148,177.38,177.37,3.16]
[1752949366308,8.9148,177.38,177.25,11.2777]
[1752949366309,3.28,177.38,177.28,2.40641042]
[1752949366610,3.28,177.36,177.33,3.16]
[1752949366812,8.9154,177.36,177.34,3.16]
[1752949367001,3.28,177.35,177.34,3.16]
[1752949367404,3.28,177.37,177.34,3.16]
[1752949367604,2.40641042,177.4,177.34,3.16]
[1752949367809,8.04081042,177.4,177.36,5.6353]
[1752949368007,3.28,177.37,177.36,5.6353]
[1752949368408,3.28,177.37,177.36,8.7953]
[1752949369117,8.9145,177.39,177.36,3.16]
[1752949369310,3.28,177.38,177.37,3.16]
[1752949370513,3.3,177.39,177.37,3.16]
[1752949370710,3.3,177.39,177.38,3.19]
[1752949370913,3.3,177.39,177.38,8.8248]
[1752949371306,111.22001042,177.42,177.38,3.19]
[1752949371512,3.3,177.41,177.4,3.19]
[1752949374314,2.40641042,177.43,177.4,3.19]
[1752949374519,3.3,177.44,177.4,3.19]
[1752949374714,3.3,177.44,177.38,3.19]
[1752949374912,3.3,177.41,177.39,8.8244]
[1752949375107,3.3,177.4,177.39,5.6344]
[1752949375322,3.3,177.42,177.36,2.40641042]
[1752949375619,3.3,177.42,177.4,5.634]
[1752949375816,3.3,177.42,177.41,3.19]
[1752949376112,8.9335,177.42,177.41,3.19]
[1752949376317,3.3,177.41,177.4,3.22610117]
[1752949376520,3.3,177.41,177.4,0.03610117]
[1752949376720,3.3,177.41,177.4,3.22610117]
[1752949376915,3.3,177.41,177.4,8.86020117]
[1752949377212,5.6328,177.45,177.41,3.19]
[1752949377416,3.3,177.45,177.41,3.19]
[1752949377617,3.3,177.45,177.42,3.19]
[1752949378819,5.6329,177.44,177.42,3.19]
[1752949379018,3.3,177.43,177.42,3.19]
[1752949379517,3.3,177.43,177.4,8.86010117]
[1752949379722,3.3,177.43,177.41,3.19]
[1752949379914,3.3,177.42,177.41,3.19]
[1752949380620,3.3,177.42,177.4,0.03610117]
[1752949380915,5.70641042,177.42,177.4,0.03610117]
[1752949381120,3.3,177.41,177.4,0.03610117]
[1752949381515,8.9338,177.41,177.4,0.03610117]
[1752949382914,3.3,177.38,177.35,3.19]
[1752949383718,5.635,177.38,177.35,3.19]
[1752949384019,3.3,177.36,177.35,3.19]
[1752949384417,3.3,177.36,177.35,8.8257]
[1752949384810,0.0372552,177.38,177.35,5.6357]
[1752949385010,3.3,177.37,177.36,3.19]
[1752949386226,0.0372552,177.38,177.36,5.6354]
[1752949386423,0.0372552,177.38,177.37,3.19]
[1752949387124,0.0372552,177.38,177.37,8.8251]
[1752949387324,3.3372552,177.38,177.37,8.8251]
[1752949387826,3.3372552,177.38,177.37,3.19]
[1752949388022,0.0372552,177.38,177.37,3.19]
[1752949388826,0.0372552,177.38,177.37,8.8251]
[1752949390424,3.3372552,177.38,177.37,8.8251]
[1752949390828,3.3372552,177.38,177.37,3.19]
[1752949391331,3.3372552,177.38,177.37,8.8251]
[1752949393133,0.0372552,177.38,177.37,8.8251]
[1752949398332,0.0372552,177.38,177.37,3.19]
[1752949399035,0.0372552,177.38,177.37,8.8251]
[1752949399731,0.0372552,177.38,177.37,3.19]
[1752949400035,3.3372552,177.38,177.36,3.19]
[1752949400535,0.0372552,177.38,177.34,3.32]
[1752949401235,0.0372552,177.38,177.37,5.6351]
[1752949401437,0.0372552,177.38,177.37,8.9551]
[1752949403034,6.28600945,177.45,177.3,2.40641042]
[1752949403035,5.54641042,177.44,177.4,3.32]
[1752949403234,3.14,177.43,177.41,3.32]
[1752949403634,3.14,177.44,177.41,3.32]
[1752949404342,5.6327,177.45,177.42,5.6334]
[1752949404638,3.14,177.43,177.42,5.6334]
[1752949404836,3.14,177.43,177.41,0.03642112]
[1752949405037,2.40641042,177.47,177.42,3.32]
[1752949405439,2.40641042,177.43,177.41,0.03642112]
[1752949405638,3.14,177.42,177.41,0.03642112]
[1752949406037,8.7735,177.42,177.41,0.03642112]
[1752949406240,5.6335,177.42,177.41,0.03642112]
[1752949406537,3.14,177.38,177.37,3.32]
[1752949406744,3.14,177.38,177.35,3.32]
[1752949407036,3.14,177.36,177.32,3.32]
[1752949407442,5.635,177.38,177.33,5.6361]
[1752949407642,0.03899993,177.36,177.34,3.32]
[1752949407936,0.03899993,177.36,177.35,5.6357]
[1752949408139,0.03899993,177.36,177.35,8.9557]
[1752949408734,3.17899993,177.36,177.35,8.9557]
[1752949409342,0.03899993,177.36,177.35,8.9557]
[1752949410135,3.14,177.4,177.37,5.6349]
[1752949410337,3.14,177.4,177.38,3.32]
[1752949410541,3.14,177.4,177.39,3.32]
[1752949411947,8.7742,177.4,177.39,3.32]
[1752949412137,5.6342,177.4,177.38,0.03563153]
[1752949412340,3.14,177.39,177.38,3.35563153]
[1752949412743,3.14,177.39,177.38,0.03563153]
[1752949413448,8.7745,177.39,177.38,0.03563153]
[1752949414253,3.14,177.39,177.38,0.03563153]
[1752949414555,3.14,177.39,177.38,3.35563153]
[1752949415556,3.14,177.4,177.38,3.35563153]
[1752949416957,3.14,177.4,177.39,3.32]
[1752949417757,3.14,177.42,177.39,3.32]
[1752949418057,3.14,177.41,177.39,3.32]
[1752949418257,3.14,177.41,177.4,3.32]
[1752949419149,8.7738,177.41,177.38,0.03563153]
[1752949419355,3.14,177.4,177.38,0.03563153]
[1752949419555,3.14,177.4,177.38,3.35563153]
[1752949419958,5.6342,177.4,177.38,3.35563153]
[1752949420156,3.14,177.39,177.38,0.03563153]
[1752949421760,3.14,177.39,177.38,3.35563153]